bitfinex/quotes_ETHUSD_20241124
["timestamp","ask_amount","ask_price","bid_price","bid_amount"]
[1732439663614,1.6527,3397.9,3397.4,0.2934]
[1732439663813,1.6527,3397.9,3397.6,0.2934]
[1732439664973,0.05733881,3397.8,3397.6,0.2934]
[1732439665216,1.6527,3397.9,3397.6,0.2934]
[1732439665385,0.05730973,3397.7,3397.6,0.2934]
[1732439665572,1.6527,3397.9,3397.8,0.2934]
[1732439665778,1.71000973,3397.9,3397.8,0.2934]
[1732439666722,0.05730973,3397.9,3397.7,0.2934]
[1732439667107,1.5187,3398.2,3397.7,0.2934]
[1732439667310,0.05731943,3397.8,3397.7,0.8434]
[1732439667515,1.5187,3398.2,3397.7,0.8434]
[1732439667714,0.05731943,3397.8,3397.7,0.8434]
[1732439667884,1.5187,3398.2,3397.7,0.8434]
[1732439668085,0.05731943,3397.8,3397.7,0.8434]
[1732439668582,1.5187,3398.2,3397.7,0.8434]
[1732439668782,0.05734366,3398.1,3397.7,0.8434]
[1732439670751,6.34609759,3398.1,3397.7,0.8434]
[1732439671604,6.34609759,3398.1,3397.9,0.2934]
[1732439671802,0.03679019,3398.0,3397.9,0.2934]
[1732439672216,0.09413385,3398.0,3397.9,0.2934]
[1732439672434,0.05734366,3398.0,3397.9,0.2934]
[1732439674026,1.5187,3398.2,3397.8,0.2934]
[1732439674234,0.05734366,3398.0,3397.8,0.2934]
[1732439674404,0.03679,3398.1,3397.8,0.2934]
[1732439674630,1.5187,3398.2,3397.8,0.2934]
[1732439674827,0.05734366,3398.0,3397.8,0.2934]
[1732439675042,1.5187,3398.2,3397.8,0.2934]
[1732439675353,0.05734366,3397.9,3397.8,0.8434]
[1732439675529,1.5187,3398.2,3397.8,0.8434]
[1732439676057,0.05739697,3398.1,3397.8,0.8434]
[1732439676255,0.03678987,3398.1,3397.8,0.8434]
[1732439677152,0.05739212,3398.0,3397.8,0.8434]
[1732439678525,0.03678999,3397.9,3397.4,0.2934]
[1732439678854,1.5187,3397.8,3397.6,0.2934]
[1732439679042,0.03679301,3397.7,3397.6,0.8434]
[1732439679762,0.09418513,3397.7,3397.6,0.8434]
[1732439679964,0.03679301,3397.7,3397.6,0.8434]
[1732439680168,0.05739212,3397.7,3397.6,0.8434]
[1732439680320,1.5187,3397.8,3397.6,0.8434]
[1732439680520,0.09418494,3397.7,3397.6,0.8434]
[1732439684176,0.09418494,3397.7,3397.2,0.2934]
[1732439684329,0.09418494,3397.7,3397.4,0.2934]
[1732439684531,0.03679282,3397.7,3397.4,0.2934]
[1732439685346,1.5187,3397.8,3397.4,0.2934]
[1732439685784,0.09418634,3397.7,3397.4,0.2934]
[1732439688069,0.05739212,3397.7,3397.4,0.2934]
[1732439688281,1.5187,3397.8,3397.4,0.2934]
[1732439688430,0.05732186,3397.6,3397.4,0.2934]
[1732439688632,0.03679412,3397.7,3397.4,0.2934]
[1732439688972,0.05732186,3397.5,3397.4,0.8434]
[1732439689161,0.03679412,3397.7,3397.4,0.2934]
[1732439689363,0.05732186,3397.5,3397.4,0.8434]
[1732439689583,0.03679412,3397.7,3397.4,0.2934]
[1732439689789,0.05732186,3397.5,3397.4,0.8434]
[1732439689984,0.03679412,3397.7,3397.4,0.8434]
[1732439690157,1.5838,3397.4,3397.3,0.8434]
[1732439690596,1.64112186,3397.4,3397.3,0.2934]
[1732439691404,1.64112186,3397.4,3396.7,0.2934]
[1732439691688,0.03679914,3397.3,3396.7,0.2934]
[1732439691999,1.5838,3397.4,3397.1,0.2934]
[1732439692149,0.05732186,3397.2,3397.1,0.2934]
[1732439692355,1.5838,3397.4,3397.1,0.2934]
[1732439692547,0.05732186,3397.2,3397.1,0.2934]
[1732439692790,1.5838,3397.4,3397.1,0.2934]
[1732439692958,0.05732186,3397.2,3397.1,0.2934]
[1732439693148,1.5838,3397.4,3397.1,0.2934]
[1732439693367,0.05732186,3397.2,3397.1,0.2934]
[1732439693571,1.6354,3397.6,3397.2,0.2934]
[1732439693767,1.6354,3397.6,3397.3,0.55]
[1732439695611,0.03679546,3397.5,3397.3,0.55]
[1732439696688,0.03679565,3397.6,3397.3,0.55]
[1732439697330,6.28875393,3397.7,3397.3,0.55]
[1732439700533,0.03679407,3397.6,3397.3,0.55]
[1732439700939,6.28875393,3397.9,3397.3,0.8434]
[1732439701125,0.05731459,3397.5,3397.3,0.8434]
[1732439701299,6.32554797,3397.9,3397.3,0.8434]
[1732439701499,0.05731459,3397.8,3397.3,0.8434]
[1732439704426,0.05731459,3397.8,3397.3,1.07971]
[1732439704643,0.05731459,3397.8,3397.7,0.2934]
[1732439704801,0.05731459,3397.8,3397.7,0.8434]
[1732439705126,1.6107,3398.3,3397.8,0.55]
[1732439705537,1.6107,3398.7,3397.9,1.7946]
[1732439705700,6.28875393,3398.6,3398.1,0.2934]
[1732439706250,0.03678629,3398.5,3398.2,0.8434]
[1732439707303,0.03678446,3398.6,3398.2,0.8434]
[1732439711356,0.20153291,3398.6,3398.0,0.55]
[1732439711651,1.5584,3398.5,3398.0,0.55]
[1732439711836,0.09436719,3398.4,3397.7,0.55]
[1732439712197,0.03678853,3398.4,3397.7,0.55]
[1732439712352,0.03678853,3398.4,3397.8,0.2934]
[1732439712680,0.03678853,3398.4,3398.0,0.2934]
[1732439712994,6.32554246,3398.4,3398.0,0.2934]
[1732439713143,7.07714818,3398.4,3398.0,0.2934]
[1732439713346,0.05757866,3398.3,3398.0,0.2934]
[1732439713667,0.05757866,3398.3,3397.8,0.2934]
[1732439714181,0.05757866,3398.3,3397.9,0.8434]
[1732439714381,0.05757866,3398.3,3398.0,0.55]
[1732439715068,0.05757866,3398.3,3398.0,2.1887]
[1732439715441,0.05757866,3398.3,3398.2,0.2934]
[1732439715649,0.05757866,3398.3,3398.2,0.8434]
[1732439716055,1.5584,3398.8,3398.4,0.2934]
[1732439716353,0.21341866,3398.7,3398.4,0.2934]
[1732439716690,0.03678355,3398.6,3398.4,0.2934]
[1732439716906,0.03678355,3398.6,3398.2,0.2934]
[1732439717196,1.5584,3398.8,3398.4,0.2934]
[1732439717597,0.05758108,3398.7,3398.4,0.2934]
[1732439718092,1.5584,3398.8,3398.4,0.2934]
[1732439718400,1.5584,3398.6,3397.3,1.6387]
[1732439718623,1.5584,3398.4,3397.3,1.6387]
[1732439718810,1.5584,3398.2,3397.3,1.6387]
[1732439719119,1.5584,3398.0,3397.1,1.6387]
[1732439719334,0.20206954,3397.9,3397.2,0.2934]
[1732439719485,0.09436004,3397.9,3397.2,0.2934]
[1732439719685,0.09436004,3397.9,3397.4,0.2934]
[1732439719888,0.09436004,3397.9,3397.5,0.8434]
[1732439720130,0.09436004,3397.9,3397.5,0.2934]
[1732439720593,0.05756655,3397.9,3397.5,0.2934]
[1732439720801,0.05756655,3397.9,3397.5,0.8434]
[1732439721005,0.05756655,3397.9,3397.5,0.2934]
[1732439721218,0.05756655,3397.9,3397.6,0.55]
[1732439721387,0.05756655,3397.9,3397.8,0.8434]
[1732439721921,0.03678759,3398.2,3397.8,0.8434]
[1732439722108,0.05737276,3397.9,3397.8,0.8434]
[1732439722312,1.5478,3398.4,3397.8,0.8434]
[1732439722500,0.05737276,3397.9,3397.8,0.8434]
[1732439722696,1.5478,3398.4,3397.8,0.8434]
[1732439722915,0.05737276,3397.9,3397.8,0.8434]
[1732439723097,0.03678756,3398.3,3397.8,0.8434]
[1732439723429,0.05737276,3397.9,3397.8,0.8434]
[1732439723628,0.82044187,3398.9,3397.8,0.8434]
[1732439723945,6.34612669,3398.8,3397.8,0.8434]
[1732439724221,6.34612669,3398.8,3398.1,0.55]
[1732439724222,0.03678643,3398.7,3398.1,0.55]
[1732439724423,6.28875393,3398.7,3398.1,0.55]
[1732439724738,0.05737276,3398.6,3398.1,0.8434]
[1732439724891,6.28875393,3398.8,3398.1,0.8434]
[1732439725228,0.05737276,3398.5,3398.1,0.8434]
[1732439725438,6.28875393,3398.8,3398.1,0.8434]
[1732439725616,0.05737276,3398.4,3398.1,0.8434]
[1732439725923,0.05737276,3398.3,3398.1,1.08022]
[1732439726129,1.5478,3398.6,3398.1,0.8434]
[1732439726426,0.05737276,3398.2,3398.1,0.8434]
[1732439726612,0.03678618,3398.5,3398.1,0.8434]
[1732439726793,0.05737276,3398.2,3398.1,0.8434]
[1732439726996,0.03678618,3398.5,3398.1,0.8434]
[1732439727203,0.05737276,3398.2,3398.1,0.8434]
[1732439727401,0.03678618,3398.5,3398.1,0.8434]
[1732439727629,0.05737276,3398.2,3398.1,0.8434]
[1732439727802,0.03678618,3398.5,3398.1,0.8434]
[1732439728002,0.05737276,3398.2,3398.1,0.8434]
[1732439728213,0.03678618,3398.5,3398.1,0.8434]
[1732439728738,0.05737276,3398.4,3397.8,0.2934]
[1732439729598,0.05737276,3398.4,3397.7,0.2934]
[1732439729810,0.05737276,3398.4,3397.9,0.2934]
[1732439730306,0.89363397,3398.4,3397.9,0.2934]
[1732439730929,0.03678896,3398.3,3398.1,0.55]
[1732439731363,0.0574309,3398.2,3398.1,0.55]
[1732439731862,0.0574309,3398.2,3398.1,0.8434]
[1732439732066,0.03678628,3398.5,3398.1,0.8434]
[1732439732236,0.08283764,3398.4,3398.1,0.8434]
[1732439733342,1.5687,3398.3,3397.1,0.2934]
[1732439733546,6.3255402,3398.2,3397.2,0.2934]
[1732439733856,0.08293212,3398.1,3397.2,0.2934]
[1732439734162,0.03679382,3398.0,3397.2,0.2934]
[1732439734528,0.03679382,3398.0,3397.1,0.2934]
[1732439734732,0.08293212,3397.9,3397.1,0.49776772]
[1732439734969,0.03679382,3397.8,3397.1,0.49776772]
[1732439735468,0.08293212,3397.7,3397.1,0.49776772]
[1732439735764,0.03679382,3397.9,3397.5,0.2934]
[1732439735935,0.08293212,3397.6,3397.5,0.2934]
[1732439736127,6.32554775,3397.9,3397.5,0.2934]
[1732439736331,0.08293212,3397.6,3397.5,0.2934]
[1732439736564,0.22343692,3397.8,3397.5,0.2934]
[1732439736765,0.08293212,3397.6,3397.1,0.2934]
[1732439736968,0.22343692,3397.8,3397.1,0.2934]
[1732439737142,0.08293212,3397.5,3397.1,0.2934]
[1732439737469,0.08293212,3397.4,3397.3,0.2934]
[1732439737773,6.28875393,3397.9,3397.5,0.2934]
[1732439738802,6.28875393,3397.9,3397.5,0.8434]
[1732439739899,1.5687,3398.0,3397.5,0.8434]
[1732439740779,0.03679063,3397.9,3397.5,0.8434]
[1732439741157,0.03679063,3397.9,3397.5,1.08512]
[1732439741370,1.5687,3398.0,3397.5,1.08512]
[1732439742882,6.28875393,3398.8,3397.7,0.2934]
[1732439743061,7.99447652,3398.7,3397.7,0.2934]
[1732439743261,0.79944765,3398.6,3397.8,0.8434]
[1732439743678,0.08288609,3398.5,3397.8,0.8434]
[1732439744107,0.08288609,3398.5,3398.0,3.55]
[1732439744409,0.08288609,3398.5,3398.2,3.0]
[1732439745796,0.03678584,3398.4,3398.2,3.0]
[1732439746393,0.08288609,3398.3,3398.2,3.0]
[1732439747280,7.87475393,3398.7,3398.2,3.0]
[1732439748116,0.03678578,3398.6,3398.2,3.0]
[1732439749020,6.28875393,3398.5,3398.2,3.0]
[1732439749311,0.11965973,3398.4,3398.2,3.0]
[1732439751117,0.08287396,3398.4,3398.2,3.0]
[1732439751921,6.37162789,3398.4,3398.2,3.0]
[1732439752980,0.08287396,3398.4,3398.2,3.0]
[1732439753314,0.11965912,3398.4,3398.2,3.0]
[1732439755328,0.11965912,3398.4,3398.3,2.9426]
[1732439755636,0.11965912,3398.4,3398.3,5.9426]
[1732439756226,0.08287396,3398.4,3398.3,6.4926]
[1732439758329,1.586,3398.7,3398.4,3.55]
[1732439758634,1.586,3398.7,3398.6,3.55]
[1732439758933,1.66887396,3398.7,3398.6,3.55]
[1732439760341,1.83576136,3398.7,3398.6,3.0]
[1732439763970,8.12451529,3398.7,3398.5,2.9425]
[1732439764142,1.59288591,3398.6,3398.5,2.9425]
[1732439764341,2.48901143,3398.6,3398.5,5.9425]
[1732439765024,2.48901143,3398.6,3398.5,2.9425]
[1732439766824,8.77776536,3398.6,3398.5,2.9425]
[1732439767028,8.74097945,3398.6,3398.5,2.9425]
[1732439769119,1.5561,3398.5,3397.5,3.2931]
[1732439769430,1.5561,3398.3,3397.5,0.2931]
[1732439769739,1.5561,3398.1,3397.2,0.2931]
[1732439769882,1.5561,3397.9,3397.2,0.2931]
[1732439770078,0.03679727,3397.8,3397.2,0.2931]
[1732439770280,6.28875393,3397.7,3397.2,0.2931]
[1732439770522,0.03679728,3397.6,3397.3,0.55]
[1732439771095,0.0829854,3397.5,3397.1,0.55]
[1732439771301,1.5561,3397.3,3396.5,2.25210929]
[1732439771612,6.32555776,3397.2,3396.5,0.32857004]
[1732439771921,6.40817975,3397.2,3396.5,0.32857004]
[1732439772086,6.40817975,3397.2,3396.4,0.30031593]
[1732439772487,6.40817975,3397.2,3396.5,0.55]
[1732439773339,1.5561,3397.0,3396.1,0.32857004]
[1732439773628,0.11930184,3396.9,3396.0,3.90400929]
[1732439773827,1.5561,3396.7,3396.0,3.90400929]
[1732439774150,0.11929704,3396.6,3396.0,2.25210929]
[1732439774425,6.28875393,3396.5,3396.0,2.25210929]
[1732439774641,0.03680961,3396.4,3396.0,2.25210929]
[1732439774924,0.08248868,3396.4,3396.0,2.25210929]
[1732439775134,0.1192981,3396.4,3396.0,2.25210929]
[1732439775299,1.5561,3396.3,3396.1,3.55]
[1732439775506,6.32556282,3396.2,3396.0,2.25210929]
[1732439775708,6.40789391,3396.2,3396.0,2.25210929]
[1732439775910,7.2042933,3396.2,3396.0,2.25210929]
[1732439776088,0.03681123,3396.1,3396.0,2.25210929]
[1732439776493,1.5561,3396.0,3395.1,1.6519]
[1732439776730,6.3255711,3395.9,3395.1,1.6519]
[1732439777095,0.08233109,3395.8,3395.1,1.6519]
[1732439777292,0.03681718,3395.7,3395.1,1.6519]
[1732439777804,0.08233109,3395.6,3395.1,1.6519]
[1732439778331,0.08233109,3395.6,3395.2,0.55]
[1732439778636,0.03681713,3395.8,3395.2,0.55]
[1732439778843,0.08233109,3395.5,3395.2,0.55]
[1732439779008,0.03681713,3395.8,3395.2,0.55]
[1732439779326,0.08233109,3395.4,3395.2,0.55]
[1732439779489,0.03681713,3395.8,3395.2,0.55]
[1732439779901,0.08233109,3395.7,3395.2,0.55]
[1732439780101,0.03681706,3395.6,3395.2,0.55]
[1732439780499,0.08233109,3395.5,3395.2,0.55]
[1732439781818,6.32557094,3395.9,3395.2,0.55]
[1732439782142,0.08233109,3395.4,3395.2,0.55]
[1732439782311,0.03681701,3395.7,3395.2,0.55]
[1732439782516,0.03681701,3395.7,3394.6,0.78963772]
[1732439782517,0.03681701,3395.7,3395.4,3.0]
[1732439782710,1.5382,3395.5,3395.4,0.55]
[1732439782911,1.57501819,3395.5,3395.4,0.55]
[1732439783322,1.65734928,3395.5,3395.4,0.55]
[1732439783752,1.62053109,3395.5,3395.4,0.55]
[1732439785242,1.65734934,3395.5,3395.4,0.55]
[1732439785645,2.45195967,3395.5,3394.6,1.6052]
[1732439785880,2.45195967,3395.5,3394.7,0.55]
[1732439786574,2.45195967,3395.5,3394.6,1.6052]
[1732439786884,1.65734934,3395.5,3394.6,1.6052]
[1732439787810,1.5382,3395.4,3394.4,0.55]
[1732439788097,1.5382,3395.4,3394.0,3.0]
[1732439788098,6.32557717,3395.3,3394.0,0.55]
[1732439788308,7.20183959,3395.3,3394.0,5.80210929]
[1732439788603,7.16501635,3395.3,3394.0,5.80210929]
[1732439788914,7.16501635,3395.3,3394.1,1.6052]
[1732439789065,1.5382,3395.2,3394.1,4.6052]
[1732439789274,0.03682723,3395.1,3394.1,1.6052]
[1732439789490,0.86583915,3395.0,3394.1,1.6052]
[1732439789694,0.03682724,3394.9,3394.1,1.6052]
[1732439790102,0.08155988,3394.8,3394.1,1.6052]
[1732439790601,0.08155988,3394.8,3394.2,0.55]
[1732439790788,0.08155988,3394.8,3394.4,0.55]
[1732439791115,6.28875393,3395.2,3394.7,0.2931]
[1732439791300,6.28875393,3395.2,3394.9,0.2931]
[1732439792288,0.0368209,3395.1,3395.0,0.8431]
[1732439793277,0.0368209,3395.1,3394.6,0.2931]
[1732439793475,1.5382,3395.0,3394.9,0.2931]
[1732439793674,1.5382,3395.0,3394.9,0.8431]
[1732439796910,1.5382,3395.0,3394.1,0.2931]
[1732439797115,1.5382,3394.8,3394.1,0.2931]
[1732439797320,0.03683032,3394.7,3394.1,0.2931]
[1732439797496,7.82695393,3394.6,3393.8,0.2931]
[1732439797701,6.3255867,3394.5,3393.8,0.2931]
[1732439797881,7.11984477,3394.5,3393.8,0.2931]
[1732439798077,7.083012,3394.5,3393.8,0.2931]
[1732439798282,0.07879402,3394.4,3393.8,0.2931]
[1732439798516,0.11562683,3394.4,3393.8,0.2931]
[1732439798757,0.07879402,3394.4,3393.8,0.2931]
[1732439798903,0.07879402,3394.4,3393.9,0.8431]
[1732439800725,0.03683208,3394.3,3393.9,0.8431]
[1732439800912,0.07879402,3394.4,3393.9,0.8431]
[1732439801117,6.32558573,3394.5,3393.9,0.8431]
[1732439801324,0.07879402,3394.3,3393.9,0.8431]
[1732439801488,6.32558573,3394.5,3393.9,0.8431]
[1732439801696,0.07879402,3394.2,3393.9,0.8431]
[1732439802007,0.07879402,3394.1,3393.9,0.8431]
[1732439802196,6.32558573,3394.5,3393.9,0.8431]
[1732439802398,0.07879402,3394.4,3393.9,0.8431]
[1732439802946,0.07879402,3394.4,3394.1,0.55]
[1732439803242,6.28875393,3394.8,3394.1,0.55]
[1732439803540,0.07580779,3394.3,3394.1,0.55]
[1732439803689,6.28875393,3394.8,3394.1,0.55]
[1732439803892,6.28875393,3394.8,3394.4,0.2931]
[1732439804126,6.28875393,3394.8,3394.5,2.3803]
[1732439804834,6.28875393,3394.8,3394.5,2.0872]
[1732439805012,0.03682515,3394.7,3394.5,0.55]
[1732439805239,0.03682515,3394.7,3394.3,0.55]
[1732439805939,0.03682515,3394.7,3394.5,0.8431]
[1732439806139,0.07580779,3394.6,3394.3,0.55]
[1732439806496,0.03682535,3394.9,3394.3,0.55]
[1732439806696,0.07580779,3394.5,3394.3,0.55]
[1732439806900,0.03682535,3394.9,3394.3,0.8431]
[1732439807098,0.07580779,3394.4,3394.3,0.8431]
[1732439807395,0.07580779,3394.4,3394.3,0.55]
[1732439807694,0.03682535,3394.9,3394.3,0.55]
[1732439807901,0.07580779,3394.4,3394.3,0.8431]
[1732439808096,0.81965328,3394.9,3394.3,0.2931]
[1732439808292,0.07580779,3394.4,3394.3,0.2931]
[1732439808591,0.81965328,3394.9,3394.5,0.2931]
[1732439808822,1.5908,3394.8,3393.9,1.5324]
[1732439809019,7.11722272,3394.7,3394.0,0.2931]
[1732439809228,6.28875393,3394.7,3394.6,3.0]
[1732439809610,6.28875393,3394.7,3394.0,0.2931]
[1732439809812,6.32558461,3394.7,3394.0,0.2931]
[1732439810133,6.32558461,3394.7,3394.1,0.8431]
[1732439810436,7.11722307,3394.7,3394.1,0.8431]
[1732439810643,7.08039239,3394.7,3394.1,0.8431]
[1732439810944,0.03683017,3394.6,3394.1,0.8431]
[1732439811302,1.5908,3394.5,3394.1,0.8431]
[1732439811602,0.03683173,3394.4,3394.1,0.8431]
[1732439811804,1.5908,3394.5,3394.1,0.8431]
[1732439812030,7.87955393,3394.5,3394.1,0.8431]
[1732439815742,6.28875393,3394.5,3394.3,0.55]
[1732439816241,6.28875393,3394.5,3394.4,0.8431]
[1732439818025,1.5908,3394.8,3394.5,0.55]
[1732439818432,1.5908,3394.8,3394.3,0.55]
[1732439818825,0.03682664,3394.7,3394.6,0.55]
[1732439819160,1.5908,3394.8,3394.3,3.55]
[1732439819656,0.07588352,3394.7,3394.3,3.55]
[1732439820171,1.5908,3395.1,3394.3,3.55]
[1732439820523,0.07588352,3395.0,3394.6,0.55]
[1732439820856,0.07588352,3394.9,3394.6,0.55]
[1732439821060,6.28875393,3395.2,3394.8,0.55]
[1732439821949,0.07588352,3395.1,3394.8,0.55]
[1732439822558,0.11270456,3395.1,3394.8,0.55]
[1732439822762,0.07588352,3395.1,3394.8,0.55]
[1732439822919,0.07588352,3395.1,3394.7,0.55]
[1732439823261,0.07588352,3395.1,3395.0,5.3768]
[1732439823553,0.07588352,3395.1,3395.0,2.3768]
[1732439823785,6.28875393,3395.5,3395.1,0.8431]
[1732439823924,6.28875393,3395.9,3395.1,0.8431]
[1732439824224,1.5312,3396.7,3395.4,0.8431]
[1732439824423,6.32556588,3396.6,3395.4,0.8431]
[1732439824620,6.32556588,3396.6,3395.5,1.5337]
[1732439824847,6.32556588,3396.6,3395.6,0.55]
[1732439825960,6.28875393,3396.6,3395.8,1.5337]
[1732439826323,0.03680448,3396.5,3395.9,0.55]
[1732439827028,6.28875393,3396.6,3395.9,0.55]
[1732439827448,1.5312,3397.0,3395.9,0.55]
[1732439827686,6.32555741,3397.4,3396.0,0.55]
[1732439827826,5.31,3398.6,3396.3,1.5277]
[1732439827827,1.5579,3397.5,3396.3,1.5277]
[1732439828028,1.5579,3397.5,3396.6,0.55]
[1732439828222,0.03679835,3397.7,3396.6,0.55]
[1732439828456,0.03679835,3397.7,3396.6,3.55]
[1732439828457,7.07770245,3397.7,3396.6,3.55]
[1732439828663,7.84665393,3397.8,3397.4,3.0]
[1732439829076,7.84665393,3397.8,3396.8,0.55]
[1732439829281,0.03679539,3397.7,3396.8,0.75777]
[1732439829859,7.84665393,3397.8,3396.8,0.75777]
[1732439830385,6.28875393,3397.8,3397.0,0.55]
[1732439830594,6.28875393,3397.8,3397.2,0.55]
[1732439831703,0.0367934,3397.7,3397.2,0.55]
[1732439833020,6.28875393,3397.9,3397.2,0.55]
[1732439833196,6.28875393,3397.9,3397.4,0.55]
[1732439833499,6.28875393,3397.9,3397.4,0.8444347]
[1732439834083,1.5579,3398.1,3397.4,0.8444347]
[1732439834297,1.5579,3398.1,3397.4,0.55]
[1732439834665,1.5579,3398.1,3397.0,0.55]
[1732439836191,1.5292,3397.8,3397.0,0.55]
[1732439836912,0.07707245,3397.7,3397.0,0.55]
[1732439837069,0.07707245,3397.7,3397.2,0.55]
[1732439837407,1.5292,3397.8,3397.2,0.55]
[1732439837617,1.5292,3398.4,3397.4,0.55]
[1732439837761,0.07707245,3397.7,3397.4,0.55]
[1732439837965,6.17611916,3398.3,3397.4,0.55]
[1732439838373,0.07707733,3397.9,3397.4,0.55]
[1732439840380,0.07536733,3397.9,3397.4,0.55]
[1732439840913,0.07536733,3397.9,3397.6,0.55]
[1732439841124,0.07536733,3397.9,3397.4,0.55]
[1732439842326,0.07536733,3397.9,3397.4,3.55]
[1732439842482,0.07536733,3397.9,3397.6,0.55]
[1732439842888,0.07536733,3397.9,3397.6,0.8431]
[1732439844623,0.07536733,3397.9,3397.6,0.55]
[1732439845359,0.23916735,3397.9,3397.3,0.2931]
[1732439845531,0.07536733,3397.9,3397.3,0.2931]
[1732439846727,0.07536733,3397.9,3397.4,0.55]
[1732439848573,0.07536733,3397.9,3397.6,0.55]
[1732439848745,0.07536733,3397.9,3397.6,0.84121]
[1732439849140,1.5566,3398.4,3397.6,0.84121]
[1732439849575,0.07726425,3397.9,3397.6,3.84121]
[1732439849879,0.07726425,3397.9,3397.6,4.13431]
[1732439850081,0.07726425,3397.9,3397.6,3.84121]
[1732439850242,0.07726425,3397.9,3397.6,0.55]
[1732439851077,0.07726425,3397.9,3397.6,0.8431]
[1732439851413,1.5566,3397.8,3397.3,0.55]
[1732439852076,0.07726425,3397.7,3397.3,0.55]
[1732439852576,1.5566,3397.8,3396.9,0.2931]
[1732439852778,0.07730083,3397.6,3396.9,0.2931]
[1732439853078,1.5566,3397.8,3396.9,0.2931]
[1732439853682,1.5566,3397.8,3397.0,0.55]
[1732439854580,0.07726426,3397.7,3397.0,0.55]
[1732439855383,0.07726426,3397.7,3397.2,0.55]
[1732439856408,1.5566,3397.6,3397.0,0.55]
[1732439856588,1.5566,3397.6,3396.8,0.2931]
[1732439856799,1.5566,3397.6,3396.9,0.2931]
[1732439856999,0.07726426,3397.5,3396.7,0.55]
[1732439857296,1.5871,3397.4,3396.6,0.55]
[1732439857497,2.45550759,3397.4,3396.6,0.2931]
[1732439857707,2.45550759,3397.4,3396.5,0.2931]
[1732439857907,7.84048342,3397.3,3396.5,0.2931]
[1732439858368,6.25338342,3397.3,3396.5,0.2931]
[1732439858694,6.25338342,3397.3,3396.6,1.7934]
[1732439859197,6.25338342,3397.3,3396.7,0.02943874]
[1732439859413,6.25338342,3397.3,3396.8,0.50824088]
[1732439859689,6.25338342,3397.3,3396.9,0.55]
[1732439860092,6.25338342,3397.3,3397.2,1.5003]
[1732439860308,6.25338342,3397.3,3397.2,2.0503]
[1732439860484,0.07726426,3397.3,3397.2,2.0503]
[1732439860663,0.07726426,3397.3,3397.2,2.3434]
[1732439860857,1.5871,3397.9,3397.7,3.0]
[1732439861058,1.73048865,3397.8,3397.3,0.55]
[1732439861295,1.6533,3397.6,3396.6,0.55]
[1732439861458,7.82941916,3397.5,3396.5,1.501]
[1732439861888,0.07718865,3397.4,3396.5,1.501]
[1732439862064,0.07718865,3397.4,3396.6,0.2931]
[1732439862913,0.07718865,3397.4,3396.8,0.2931]
[1732439863420,0.07718865,3397.4,3396.9,0.55]
[1732439863620,0.86784943,3397.4,3396.9,0.55]
[1732439863926,0.86784943,3397.4,3396.8,0.2931]
[1732439864084,0.07718865,3397.4,3396.9,0.55]
[1732439865086,0.07718865,3397.4,3396.8,0.2931]
[1732439865316,1.6533,3397.3,3396.9,0.55]
[1732439865510,2.44396078,3397.3,3396.7,0.8431]
[1732439865919,0.07718865,3397.2,3396.7,0.8431]
[1732439869714,1.6533,3397.1,3396.7,0.2931]
[1732439870129,0.07705935,3397.0,3396.7,0.2931]
[1732439870321,0.07705935,3397.0,3396.4,0.2931]
[1732439870886,0.07705935,3397.0,3396.3,0.8431]
[1732439872487,1.5625,3396.9,3396.3,0.8431]
[1732439872891,0.07694225,3396.8,3396.3,0.8431]
[1732439873131,0.07694225,3396.8,3396.0,0.2931]
[1732439873331,1.5625,3396.7,3395.8,0.2931]
[1732439873533,1.5625,3396.5,3395.8,0.2931]
[1732439874033,0.07694225,3396.4,3395.8,0.2931]
[1732439874214,0.07694225,3396.4,3395.7,0.2931]
[1732439875316,1.5625,3396.3,3395.6,0.2931]
[1732439875492,7.73861916,3396.3,3395.6,0.2931]
[1732439876028,0.85080417,3396.2,3395.6,0.2931]
[1732439876193,0.85080417,3396.2,3395.4,0.2931]
[1732439876394,0.07694225,3396.2,3395.4,0.2931]
[1732439876637,1.5625,3396.1,3395.4,0.2931]
[1732439877109,0.07656399,3396.0,3395.4,0.2931]
[1732439877310,0.07656399,3396.0,3395.6,0.2931]
[1732439877533,1.5625,3395.9,3395.6,0.2931]
[1732439877745,1.63906155,3395.9,3395.6,0.2931]
[1732439878413,1.63906155,3395.9,3395.4,0.2931]
[1732439878798,1.63906155,3395.9,3395.5,0.8431]
[1732439879401,2.43697026,3395.9,3395.5,0.8431]
[1732439879925,0.87447026,3395.9,3395.5,0.8431]
[1732439880132,1.5625,3395.8,3395.5,0.8431]
[1732439880521,0.07639309,3395.7,3395.5,0.2931]
[1732439880745,7.73861916,3395.6,3395.4,0.2931]
[1732439880899,6.17611916,3395.5,3395.4,0.2931]
[1732439881101,6.25250492,3395.5,3395.4,0.2931]
[1732439881994,6.25250492,3395.5,3395.4,3.0]
[1732439882230,6.94990037,3395.5,3395.3,2.25210929]
[1732439882402,1.5003,3395.4,3395.3,2.25210929]
[1732439883117,1.57668576,3395.4,3394.5,0.2931]
[1732439883342,6.17611916,3395.3,3394.5,0.51184751]
[1732439883754,6.17611916,3395.3,3394.6,0.02945895]
[1732439884040,0.07638576,3395.2,3394.5,4.14069264]
[1732439884221,0.07638576,3395.2,3394.6,0.55]
[1732439885447,1.5003,3395.1,3394.6,0.55]
[1732439885805,0.07633448,3395.0,3394.6,0.55]
[1732439886955,0.07633448,3395.0,3394.3,0.2931]
[1732439887137,6.25245364,3395.0,3394.3,0.2931]
[1732439887837,6.25245364,3395.0,3394.2,1.5941]
[1732439888035,1.575,3394.9,3394.0,2.84548436]
[1732439888339,7.75111916,3394.9,3394.1,0.55]
[1732439888542,0.07633448,3394.8,3394.1,0.55]
[1732439888859,0.85907984,3394.8,3394.1,0.55]
[1732439889015,1.575,3394.7,3394.0,2.54520929]